[Event "Torneo Nuevo Centro. Jornada 11"]
[Site "Chess.com"]
[Date "2020.08.28"]
[Round "2"]
[White "Escalona Moncholi, Felix"]
[Black "Martin Ayala, David"]
[Result "1-0"]
[WhiteElo "2108"]
[BlackElo "1818"]
[TimeControl "180+2"]
[EndTime "10:48:43 PDT"]
[Termination "Victoria de SchachSpielerESP por tiempo"]

1. e4 {[%clk 0:03:01.9]} 1... d5 {[%clk 0:03:00.4]} 2. exd5 {[%clk 0:03:02.6]}
2... Nf6 {[%clk 0:03:01.4]} 3. Nf3 {[%clk 0:03:03.4]} 3... Nxd5 {[%clk
0:03:02.1]} 4. d4 {[%clk 0:03:04.6]} 4... g6 {[%clk 0:03:02.7]} 5. c4 {[%clk
0:03:05.5]} 5... Nb6 {[%clk 0:03:03.4]} 6. Be3 {[%clk 0:03:04.9]} 6... Bg7
{[%clk 0:03:04]} 7. Nc3 {[%clk 0:03:06]} 7... O-O {[%clk 0:03:04.3]} 8. Be2
{[%clk 0:03:07]} 8... Bg4 {[%clk 0:03:05]} 9. O-O {[%clk 0:03:05.5]} 9... Nc6
{[%clk 0:03:05.5]} 10. b3 {[%clk 0:03:06.5]} 10... Bxf3 {[%clk 0:03:05]} 11.
Bxf3 {[%clk 0:03:07.1]} 11... Nxd4 {[%clk 0:03:05.7]} 12. Bxb7 {[%clk
0:02:57.9]} 12... Rb8 {[%clk 0:03:05.5]} 13. Be4 {[%clk 0:02:58]} 13... e5
{[%clk 0:02:31.7]} 14. Rc1 {[%clk 0:02:22.9]} 14... f5 {[%clk 0:02:25.2]} 15.
Bb1 {[%clk 0:02:08]} 15... c5 {[%clk 0:02:17.2]} 16. f3 {[%clk 0:01:45.6]} 16...
Qe7 {[%clk 0:02:15.6]} 17. Qe1 {[%clk 0:01:43.5]} 17... Rbd8 {[%clk 0:02:12.7]}
18. Qf2 {[%clk 0:01:30.1]} 18... a6 {[%clk 0:02:03.4]} 19. Rfe1 {[%clk 0:01:31]}
19... Qb7 {[%clk 0:01:58.4]} 20. Bg5 {[%clk 0:01:29.8]} 20... Rde8 {[%clk
0:01:57.5]} 21. h4 {[%clk 0:01:11.5]} 21... h6 {[%clk 0:01:56]} 22. Bd2 {[%clk
0:01:10.1]} 22... Kh7 {[%clk 0:01:51.1]} 23. Rcd1 {[%clk 0:01:06.2]} 23... Rg8
{[%clk 0:01:50.8]} 24. Ne2 {[%clk 0:01:00.2]} 24... Bf6 {[%clk 0:01:45.2]} 25.
f4 {[%clk 0:00:59.4]} 25... e4 {[%clk 0:01:42.5]} 26. Be3 {[%clk 0:00:59.5]}
26... Qe7 {[%clk 0:01:27.2]} 27. Nxd4 {[%clk 0:00:51.8]} 27... cxd4 {[%clk
0:01:27.4]} 28. Bxd4 {[%clk 0:00:52.8]} 28... Bxh4 {[%clk 0:01:27.8]} 29. g3
{[%clk 0:00:53]} 29... g5 {[%clk 0:01:14.9]} 30. gxh4 {[%clk 0:00:47.3]} 30...
gxf4+ {[%clk 0:01:15.6]} 31. Kf1 {[%clk 0:00:40.3]} 31... Nd7 {[%clk 0:00:57.4]}
32. Qxf4 {[%clk 0:00:37.3]} 32... Qf7 {[%clk 0:00:55.3]} 33. Bxe4 {[%clk
0:00:20.3]} 33... Rxe4 {[%clk 0:00:30.1]} 34. Rxe4 {[%clk 0:00:22.2]} 34... Qg6
{[%clk 0:00:30.8]} 35. Re2 {[%clk 0:00:19.4]} 35... Nf6 {[%clk 0:00:26]} 36.
Rdd2 {[%clk 0:00:15]} 36... Ne4 {[%clk 0:00:24.5]} 37. Rd3 {[%clk 0:00:12.5]}
37... Qe6 {[%clk 0:00:16.5]} 38. Rf3 {[%clk 0:00:13]} 38... Nd6 {[%clk
0:00:11.7]} 39. Rxe6 {[%clk 0:00:12.3]} 39... Rg4 {[%clk 0:00:12]} 40. Qxd6
{[%clk 0:00:11.8]} 1

[Event "Torneo Nuevo Centro. Jornada 11"]
[Site "Chess.com"]
[Date "2020.08.28"]
[Round "2"]
[White "Sampedro Roig, Josep Francesc"]
[Black "Gil López, Alejandro"]
[Result "0-1"]
[WhiteElo "1836"]
[BlackElo "2211"]
[TimeControl "180+2"]
[EndTime "10:48:46 PDT"]
[Termination "Victoria de AglVal0313 por abandono"]

1. e4 {[%clk 0:03:00.4]} 1... c5 {[%clk 0:02:59.2]} 2. Nf3 {[%clk 0:03:00.8]}
2... g6 {[%clk 0:02:59.3]} 3. d4 {[%clk 0:03:01.5]} 3... cxd4 {[%clk 0:02:59.4]}
4. Nxd4 {[%clk 0:03:03.4]} 4... Bg7 {[%clk 0:03:00.7]} 5. c4 {[%clk 0:03:04.4]}
5... Nc6 {[%clk 0:03:01.7]} 6. Be3 {[%clk 0:03:05.3]} 6... Nf6 {[%clk
0:03:01.9]} 7. Nc3 {[%clk 0:03:06.9]} 7... O-O {[%clk 0:03:02.8]} 8. Be2 {[%clk
0:03:07.1]} 8... d6 {[%clk 0:03:04]} 9. O-O {[%clk 0:03:07.5]} 9... Bd7 {[%clk
0:03:05.2]} 10. Rc1 {[%clk 0:03:07]} 10... a6 {[%clk 0:03:06.6]} 11. f3 {[%clk
0:03:06.3]} 11... Rb8 {[%clk 0:03:07.9]} 12. Qd2 {[%clk 0:03:06.1]} 12... Nxd4
{[%clk 0:03:01.4]} 13. Bxd4 {[%clk 0:03:06.7]} 13... b5 {[%clk 0:03:03.3]} 14.
cxb5 {[%clk 0:03:01.3]} 14... axb5 {[%clk 0:03:05.2]} 15. b4 {[%clk 0:02:54.9]}
15... e6 {[%clk 0:02:20.1]} 16. Rfd1 {[%clk 0:02:52.8]} 16... d5 {[%clk
0:02:14.4]} 17. exd5 {[%clk 0:02:49.3]} 17... exd5 {[%clk 0:02:15]} 18. Bf1
{[%clk 0:02:23.6]} 18... Re8 {[%clk 0:02:08.8]} 19. Bf2 {[%clk 0:02:04.9]} 19...
Bc6 {[%clk 0:01:58.5]} 20. Ne2 {[%clk 0:02:01.9]} 20... Bd7 {[%clk 0:01:50]} 21.
Nd4 {[%clk 0:01:57.7]} 21... Rb6 {[%clk 0:01:41.9]} 22. Nb3 {[%clk 0:01:55.2]}
22... Rc6 {[%clk 0:01:23.6]} 23. Nc5 {[%clk 0:01:54.5]} 23... Rc8 {[%clk
0:01:13.7]} 24. Bd4 {[%clk 0:01:33.3]} 24... Bc6 {[%clk 0:01:10.3]} 25. Qg5
{[%clk 0:01:22.6]} 25... h6 {[%clk 0:01:06.8]} 26. Qh4 {[%clk 0:01:20.1]} 26...
g5 {[%clk 0:01:03.4]} 27. Qf2 {[%clk 0:01:18.1]} 27... Qd6 {[%clk 0:01:01.3]}
28. Re1 {[%clk 0:01:10.4]} 28... Rxe1 {[%clk 0:01:01.1]} 29. Rxe1 {[%clk
0:01:10.1]} 29... Re8 {[%clk 0:01:00.8]} 30. Rxe8+ {[%clk 0:01:05.8]} 30... Nxe8
{[%clk 0:01:02.7]} 31. Bxg7 {[%clk 0:01:06.9]} 31... Nxg7 {[%clk 0:01:03.5]} 32.
Bd3 {[%clk 0:01:00.6]} 32... Ne6 {[%clk 0:01:03.6]} 33. Bb1 {[%clk 0:00:54.8]}
33... Nxc5 {[%clk 0:00:58.4]} 34. Qxc5 {[%clk 0:00:47.3]} 34... Qxc5+ {[%clk
0:00:59.4]} 35. bxc5 {[%clk 0:00:48.3]} 35... Kg7 {[%clk 0:01:01.3]} 36. Kf2
{[%clk 0:00:49.6]} 36... Kf6 {[%clk 0:01:01.7]} 37. Ke3 {[%clk 0:00:50.8]} 37...
Ke5 {[%clk 0:01:01.9]} 38. Bc2 {[%clk 0:00:37.5]} 38... d4+ {[%clk 0:00:39.2]}
39. Kd3 {[%clk 0:00:38.5]} 39... f6 {[%clk 0:00:31.4]} 40. Bb3 {[%clk
0:00:37.2]} 40... Bd5 {[%clk 0:00:31.6]} 41. Bc2 {[%clk 0:00:32.8]} 41... Bxa2
{[%clk 0:00:29.7]} 42. Bd1 {[%clk 0:00:24.7]} 42... Bc4+ {[%clk 0:00:30]} 43.
Kd2 {[%clk 0:00:22.1]} 43... Kd5 {[%clk 0:00:31.2]} 44. Bc2 {[%clk 0:00:20.5]}
44... Kxc5 {[%clk 0:00:31.5]} 45. Bf5 {[%clk 0:00:21.6]} 45... b4 {[%clk
0:00:32.3]} 46. Bb1 {[%clk 0:00:20]} 46... b3 {[%clk 0:00:32.6]} 47. Be4 {[%clk
0:00:18.6]} 47... Kb4 {[%clk 0:00:33.2]} 48. Kc1 {[%clk 0:00:19.6]} 48... Kc3
{[%clk 0:00:31.9]} 0

[Event "Torneo Nuevo Centro. Jornada 11"]
[Site "Chess.com"]
[Date "2020.08.28"]
[Round "2"]
[White "Castellano López, Javier"]
[Black "Gómez Alonso, Óscar"]
[Result "1-0"]
[WhiteElo "1953"]
[BlackElo "1791"]
[TimeControl "180+2"]
[EndTime "10:48:46 PDT"]
[Termination "Victoria de its_xavi_official por abandono"]

1. d4 {[%clk 0:03:01.9]} 1... Nf6 {[%clk 0:03:00.2]} 2. c4 {[%clk 0:02:59.6]}
2... e6 {[%clk 0:02:59.6]} 3. Nf3 {[%clk 0:02:58.8]} 3... d5 {[%clk 0:02:58.8]}
4. cxd5 {[%clk 0:02:58.7]} 4... exd5 {[%clk 0:02:59.7]} 5. Nc3 {[%clk
0:02:59.5]} 5... c6 {[%clk 0:03:00.3]} 6. Bg5 {[%clk 0:03:00.2]} 6... Be7 {[%clk
0:03:00.1]} 7. e3 {[%clk 0:03:01.4]} 7... O-O {[%clk 0:03:01.1]} 8. Bd3 {[%clk
0:03:02.3]} 8... Bg4 {[%clk 0:03:01.7]} 9. h3 {[%clk 0:03:01.1]} 9... Bh5 {[%clk
0:03:02.6]} 10. Qc2 {[%clk 0:03:00.9]} 10... Bg6 {[%clk 0:02:59.7]} 11. Rb1
{[%clk 0:02:56.5]} 11... Nbd7 {[%clk 0:02:50.4]} 12. b4 {[%clk 0:02:55.9]} 12...
Bxd3 {[%clk 0:02:42]} 13. Qxd3 {[%clk 0:02:56.5]} 13... b5 {[%clk 0:02:42.5]}
14. O-O {[%clk 0:02:47.6]} 14... Nb6 {[%clk 0:02:41.7]} 15. a4 {[%clk
0:02:43.6]} 15... a6 {[%clk 0:02:41.9]} 16. a5 {[%clk 0:02:38.2]} 16... Nc4
{[%clk 0:02:42.7]} 17. Ne5 {[%clk 0:02:30.3]} 17... Qc7 {[%clk 0:02:42.9]} 18.
Bf4 {[%clk 0:02:25.3]} 18... Bd6 {[%clk 0:02:43.4]} 19. Nxc4 {[%clk 0:02:08.7]}
19... bxc4 {[%clk 0:02:41.3]} 20. Bxd6 {[%clk 0:02:03.1]} 20... Qxd6 {[%clk
0:02:42.2]} 21. Qd2 {[%clk 0:01:52.9]} 21... Rab8 {[%clk 0:02:40.9]} 22. Na4
{[%clk 0:01:44.6]} 22... Ne4 {[%clk 0:02:37.4]} 23. Qe1 {[%clk 0:01:34.7]} 23...
Rb7 {[%clk 0:02:36.2]} 24. Nc5 {[%clk 0:01:35.1]} 24... Nxc5 {[%clk 0:02:31.3]}
25. bxc5 {[%clk 0:01:35.1]} 25... Rxb1 {[%clk 0:02:03.2]} 26. Qxb1 {[%clk
0:01:33.5]} 26... Qc7 {[%clk 0:01:54.7]} 27. Qb6 {[%clk 0:01:33.8]} 27... Rc8
{[%clk 0:01:53.6]} 28. Rb1 {[%clk 0:01:32]} 28... h6 {[%clk 0:01:52.9]} 29. Qxa6
{[%clk 0:01:29.1]} 29... c3 {[%clk 0:01:43]} 30. Qb6 {[%clk 0:01:25.5]} 30...
Qd7 {[%clk 0:01:04.4]} 31. a6 {[%clk 0:01:19.6]} 31... Qf5 {[%clk 0:01:03.6]}
32. a7 {[%clk 0:01:13.3]} 32... c2 {[%clk 0:01:02.2]} 33. Rc1 {[%clk 0:01:13.6]}
33... Qd3 {[%clk 0:00:57.3]} 34. Qb2 {[%clk 0:01:07.4]} 34... Ra8 {[%clk
0:00:37.5]} 35. Qb8+ {[%clk 0:01:02.7]} 35... Kh7 {[%clk 0:00:34.9]} 36. Qxa8
{[%clk 0:00:53.1]} 36... Qd2 {[%clk 0:00:34.9]} 37. Rf1 {[%clk 0:00:50]} 37...
c1=Q {[%clk 0:00:33.2]} 38. Rxc1 {[%clk 0:00:50.8]} 38... Qxc1+ {[%clk
0:00:34.3]} 39. Kh2 {[%clk 0:00:52.4]} 39... Qf1 {[%clk 0:00:31]} 40. Qxc6
{[%clk 0:00:48.4]} 40... Qxf2 {[%clk 0:00:27.4]} 41. a8=Q {[%clk 0:00:45]} 41...
Qxe3 {[%clk 0:00:27.1]} 42. Qd6 {[%clk 0:00:27.6]} 42... f5 {[%clk 0:00:24]} 43.
Qe5 {[%clk 0:00:25]} 43... Qf2 {[%clk 0:00:19.3]} 44. Qaxd5 {[%clk 0:00:20.6]}
44... f4 {[%clk 0:00:16.5]} 45. Qf5+ {[%clk 0:00:21.4]} 45... g6 {[%clk
0:00:15.6]} 46. Qff7+ {[%clk 0:00:22.1]} 1

[Event "Torneo Nuevo Centro. Jornada 11"]
[Site "Chess.com"]
[Date "2020.08.28"]
[Round "2"]
[White "Pedros Viudes, Santiago"]
[Black "Chofre Murcia, Adrián"]
[Result "1-0"]
[WhiteElo "1935"]
[BlackElo "1636"]
[TimeControl "180+2"]
[EndTime "10:49:05 PDT"]
[Termination "Victoria de ElGatoKamsky por jaque mate"]

1. d4 {[%clk 0:03:00]} 1... f5 {[%clk 0:03:00.5]} 2. Nc3 {[%clk 0:02:59.5]} 2...
Nf6 {[%clk 0:03:01.4]} 3. Bg5 {[%clk 0:03:00.2]} 3... h6 {[%clk 0:03:01.5]} 4.
Bxf6 {[%clk 0:02:55.3]} 4... exf6 {[%clk 0:03:00.8]} 5. Qd3 {[%clk 0:02:52.2]}
5... d6 {[%clk 0:02:59.6]} 6. e4 {[%clk 0:02:51.1]} 6... fxe4 {[%clk 0:02:59]}
7. Qxe4+ {[%clk 0:02:41.8]} 7... Qe7 {[%clk 0:02:59.9]} 8. Bd3 {[%clk
0:02:39.8]} 8... Qxe4+ {[%clk 0:03:00]} 9. Bxe4 {[%clk 0:02:41.7]} 9... Be7
{[%clk 0:03:01]} 10. Bg6+ {[%clk 0:02:38.3]} 10... Kd8 {[%clk 0:02:58.1]} 11.
O-O-O {[%clk 0:02:35.2]} 11... Nc6 {[%clk 0:02:53.9]} 12. f3 {[%clk 0:02:30.2]}
12... Bd7 {[%clk 0:02:53.6]} 13. Nge2 {[%clk 0:02:28.1]} 13... Be8 {[%clk
0:02:41.4]} 14. Bf5 {[%clk 0:02:20.7]} 14... g6 {[%clk 0:02:38]} 15. Be6 {[%clk
0:02:12.9]} 15... Rf8 {[%clk 0:02:32.6]} 16. Rhe1 {[%clk 0:02:01]} 16... Bd7
{[%clk 0:02:32.1]} 17. Bc4 {[%clk 0:01:54.7]} 17... a6 {[%clk 0:02:29.3]} 18.
Nf4 {[%clk 0:01:54.1]} 18... b5 {[%clk 0:02:02.8]} 19. Bd5 {[%clk 0:01:45.9]}
19... Rb8 {[%clk 0:01:44.5]} 20. Bxc6 {[%clk 0:01:45]} 20... Bxc6 {[%clk
0:01:43.1]} 21. Ne6+ {[%clk 0:01:46]} 21... Ke8 {[%clk 0:01:40.5]} 22. Nxf8
{[%clk 0:01:42.3]} 22... Kxf8 {[%clk 0:01:41.3]} 23. d5 {[%clk 0:01:40.8]} 23...
Bd7 {[%clk 0:01:41.2]} 24. Re2 {[%clk 0:01:34.7]} 24... b4 {[%clk 0:01:37.9]}
25. Ne4 {[%clk 0:01:32.7]} 25... f5 {[%clk 0:01:35.8]} 26. Nf2 {[%clk 0:01:32]}
26... Bf6 {[%clk 0:01:29.6]} 27. Nd3 {[%clk 0:01:30.1]} 27... b3 {[%clk
0:01:27.4]} 28. axb3 {[%clk 0:01:27.6]} 28... a5 {[%clk 0:01:26.2]} 29. Kd2
{[%clk 0:01:22.8]} 29... Bb5 {[%clk 0:01:17.1]} 30. c4 {[%clk 0:01:13]} 30...
Bd7 {[%clk 0:01:13.3]} 31. Kc2 {[%clk 0:01:12.4]} 31... Kf7 {[%clk 0:00:56.9]}
32. Ra1 {[%clk 0:01:09.7]} 32... a4 {[%clk 0:00:54.7]} 33. bxa4 {[%clk
0:01:09.1]} 33... g5 {[%clk 0:00:51.7]} 34. a5 {[%clk 0:00:57]} 34... f4 {[%clk
0:00:51.6]} 35. a6 {[%clk 0:00:50.5]} 35... Bd4 {[%clk 0:00:43.2]} 36. Ra2
{[%clk 0:00:44.6]} 36... Ra8 {[%clk 0:00:35]} 37. b4 {[%clk 0:00:44.7]} 37...
Bf5 {[%clk 0:00:31.6]} 38. Kd2 {[%clk 0:00:41.2]} 38... Bc8 {[%clk 0:00:21.3]}
39. b5 {[%clk 0:00:40.7]} 39... Bf5 {[%clk 0:00:19.2]} 40. Nb4 {[%clk
0:00:40.7]} 40... Bc5 {[%clk 0:00:18.8]} 41. Nc6 {[%clk 0:00:41.3]} 41... Bd7
{[%clk 0:00:15.3]} 42. Re7+ {[%clk 0:00:40.7]} 42... Kf6 {[%clk 0:00:16]} 43.
Rxd7 {[%clk 0:00:42.6]} 43... Re8 {[%clk 0:00:14.4]} 44. Re7 {[%clk 0:00:39.2]}
44... Ra8 {[%clk 0:00:13.4]} 45. Rxc7 {[%clk 0:00:39.2]} 45... Bb6 {[%clk
0:00:13.8]} 46. Rb7 {[%clk 0:00:38.4]} 46... Bc5 {[%clk 0:00:14.5]} 47. a7
{[%clk 0:00:39.4]} 47... Re8 {[%clk 0:00:14.9]} 48. Rb8 {[%clk 0:00:34.7]} 48...
Re3 {[%clk 0:00:08.5]} 49. a8=Q {[%clk 0:00:32.7]} 49... Rb3 {[%clk 0:00:08.8]}
50. Rf8+ {[%clk 0:00:32.3]} 50... Kg6 {[%clk 0:00:09.8]} 51. Qe8+ {[%clk
0:00:32.3]} 51... Kg7 {[%clk 0:00:11]} 52. Qf7# {[%clk 0:00:30.8]} 1

[Event "Torneo Nuevo Centro. Jornada 11"]
[Site "Chess.com"]
[Date "2020.08.28"]
[Round "2"]
[White "Méndez Giménez , Néstor Emmanuel"]
[Black "Bercaru, Vlad Ionut"]
[Result "0-1"]
[WhiteElo "1242"]
[BlackElo "1727"]
[TimeControl "180+2"]
[EndTime "10:49:08 PDT"]
[Termination "Victoria de Rata29 por abandono"]

1. e4 {[%clk 0:02:54.5]} 1... e6 {[%clk 0:03:00.4]} 2. d4 {[%clk 0:02:52.7]}
2... d5 {[%clk 0:03:00.8]} 3. e5 {[%clk 0:02:47.7]} 3... c5 {[%clk 0:03:00.7]}
4. c3 {[%clk 0:02:47.1]} 4... Nc6 {[%clk 0:03:01.2]} 5. Nf3 {[%clk 0:02:46.9]}
5... Bd7 {[%clk 0:03:01.8]} 6. Bd3 {[%clk 0:02:42.7]} 6... Qb6 {[%clk
0:02:57.3]} 7. dxc5 {[%clk 0:02:35.9]} 7... Bxc5 {[%clk 0:02:57.8]} 8. O-O
{[%clk 0:02:34.4]} 8... Qc7 {[%clk 0:02:53.8]} 9. b4 {[%clk 0:02:29]} 9... Bb6
{[%clk 0:02:44.4]} 10. a4 {[%clk 0:02:28.7]} 10... a6 {[%clk 0:02:40.7]} 11. a5
{[%clk 0:02:29]} 11... Ba7 {[%clk 0:02:37.6]} 12. Qe2 {[%clk 0:02:29.1]} 12...
Nge7 {[%clk 0:02:28.5]} 13. Be3 {[%clk 0:02:28.4]} 13... Bxe3 {[%clk 0:02:19.7]}
14. Qxe3 {[%clk 0:02:29]} 14... Ng6 {[%clk 0:02:14.9]} 15. Nd4 {[%clk
0:02:29.1]} 15... Qxe5 {[%clk 0:01:54.9]} 16. Nxc6 {[%clk 0:02:25.4]} 16... Qxe3
{[%clk 0:01:49.7]} 17. fxe3 {[%clk 0:02:24.7]} 17... Bxc6 {[%clk 0:01:40.8]} 18.
Bxg6 {[%clk 0:02:24.1]} 18... hxg6 {[%clk 0:01:40.2]} 19. Nd2 {[%clk 0:02:24.2]}
19... Bb5 {[%clk 0:01:36.3]} 20. Rf2 {[%clk 0:02:21.8]} 20... Ke7 {[%clk
0:01:34.3]} 21. e4 {[%clk 0:02:18.5]} 21... Rad8 {[%clk 0:01:22.2]} 22. exd5
{[%clk 0:02:16.2]} 22... Rxd5 {[%clk 0:01:24.1]} 23. c4 {[%clk 0:02:13.8]} 23...
Rxd2 {[%clk 0:01:02.8]} 24. Rxd2 {[%clk 0:02:12.8]} 24... Bxc4 {[%clk
0:01:03.7]} 25. Rc1 {[%clk 0:02:12.3]} 25... Bd5 {[%clk 0:00:48.9]} 26. Re1
{[%clk 0:02:09.5]} 26... Bc6 {[%clk 0:00:36]} 27. Red1 {[%clk 0:02:04.5]} 27...
Rh4 {[%clk 0:00:28.6]} 28. g3 {[%clk 0:01:53.7]} 28... Rxb4 {[%clk 0:00:28.5]}
29. Rd4 {[%clk 0:01:47.8]} 29... Rb5 {[%clk 0:00:25.2]} 30. Ra1 {[%clk
0:01:40.7]} 30... Bd5 {[%clk 0:00:21.5]} 31. Rd2 {[%clk 0:01:32.7]} 31... Kd6
{[%clk 0:00:21.3]} 32. Rc2 {[%clk 0:01:32.5]} 32... Kd7 {[%clk 0:00:18.3]} 33.
Kf2 {[%clk 0:01:27.1]} 33... Rb4 {[%clk 0:00:19.3]} 34. Ke3 {[%clk 0:01:21.9]}
34... Rb3+ {[%clk 0:00:19.9]} 35. Kd4 {[%clk 0:01:20.5]} 35... Rb4+ {[%clk
0:00:17.8]} 36. Kc5 {[%clk 0:01:17.2]} 36... Rb5+ {[%clk 0:00:18.4]} 37. Kd4
{[%clk 0:01:14.7]} 37... e5+ {[%clk 0:00:17.6]} 38. Ke3 {[%clk 0:01:07]} 38...
f6 {[%clk 0:00:18.2]} 39. Rd2 {[%clk 0:01:01.3]} 39... Ke6 {[%clk 0:00:18.1]}
40. h4 {[%clk 0:00:56.3]} 40... Rb3+ {[%clk 0:00:18.2]} 41. Ke2 {[%clk
0:00:55.7]} 41... Bc4+ {[%clk 0:00:18.2]} 42. Kd1 {[%clk 0:00:55]} 42... Rxg3
{[%clk 0:00:18]} 43. Rc1 {[%clk 0:00:54.8]} 43... Bd5 {[%clk 0:00:17.4]} 44. Kc2
{[%clk 0:00:51]} 44... Bc6 {[%clk 0:00:16.8]} 45. Rcd1 {[%clk 0:00:50.3]} 45...
Ba4+ {[%clk 0:00:14.9]} 46. Kc1 {[%clk 0:00:50.5]} 46... Bxd1 {[%clk 0:00:16.8]}
47. Rxd1 {[%clk 0:00:51.4]} 47... Ke7 {[%clk 0:00:18.2]} 48. Kb1 {[%clk
0:00:50.3]} 48... Rg4 {[%clk 0:00:19.6]} 49. Rc1 {[%clk 0:00:49.9]} 49... Rb4+
{[%clk 0:00:20.9]} 50. Ka2 {[%clk 0:00:50.3]} 50... Kd7 {[%clk 0:00:21.3]} 51.
Rd1+ {[%clk 0:00:49.9]} 51... Kc6 {[%clk 0:00:22.1]} 52. Rc1+ {[%clk 0:00:49.4]}
52... Kb5 {[%clk 0:00:21.5]} 53. Rc7 {[%clk 0:00:48.9]} 53... Rxh4 {[%clk
0:00:21.8]} 54. Rxg7 {[%clk 0:00:49.1]} 54... Kxa5 {[%clk 0:00:22.4]} 55. Rxb7
{[%clk 0:00:49.7]} 55... g5 {[%clk 0:00:21.7]} 56. Kb2 {[%clk 0:00:49.8]} 56...
Rb4+ {[%clk 0:00:22.4]} 0

[Event "Torneo Nuevo Centro. Jornada 11"]
[Site "Chess.com"]
[Date "2020.08.28"]
[Round "2"]
[White "Gimenez Saiz, Jose Raul"]
[Black "Aymerich Rosell, Pablo"]
[Result "0-1"]
[WhiteElo "1815"]
[BlackElo "2010"]
[TimeControl "180+2"]
[EndTime "10:49:10 PDT"]
[Termination "Victoria de jasikevic por jaque mate"]

1. d4 {[%clk 0:03:01.9]} 1... Nf6 {[%clk 0:03:00]} 2. e3 {[%clk 0:03:00.6]} 2...
d5 {[%clk 0:02:58.5]} 3. Bd3 {[%clk 0:02:58.2]} 3... g6 {[%clk 0:02:58.3]} 4. f4
{[%clk 0:02:50.7]} 4... Bg7 {[%clk 0:02:56.3]} 5. Nd2 {[%clk 0:02:51.4]} 5...
O-O {[%clk 0:02:56.9]} 6. Ngf3 {[%clk 0:02:52.6]} 6... Nc6 {[%clk 0:02:53.2]} 7.
c3 {[%clk 0:02:52.6]} 7... Rb8 {[%clk 0:02:51.5]} 8. O-O {[%clk 0:02:47.4]} 8...
b5 {[%clk 0:02:52.1]} 9. Ne5 {[%clk 0:02:47.2]} 9... Nxe5 {[%clk 0:02:39.4]} 10.
fxe5 {[%clk 0:02:47.8]} 10... Ng4 {[%clk 0:02:38.2]} 11. Nf3 {[%clk 0:02:46.2]}
11... Nh6 {[%clk 0:02:32.6]} 12. e4 {[%clk 0:02:44]} 12... Bb7 {[%clk
0:02:23.8]} 13. exd5 {[%clk 0:02:40.6]} 13... Bxd5 {[%clk 0:02:22.9]} 14. Qe2
{[%clk 0:02:29.4]} 14... a6 {[%clk 0:02:17.2]} 15. Ng5 {[%clk 0:02:29]} 15... e6
{[%clk 0:02:05]} 16. Bd2 {[%clk 0:02:24.9]} 16... Nf5 {[%clk 0:02:03.9]} 17. a4
{[%clk 0:02:08.4]} 17... c6 {[%clk 0:02:02.5]} 18. g4 {[%clk 0:02:03.4]} 18...
Nh4 {[%clk 0:01:55.4]} 19. Qf2 {[%clk 0:02:03.4]} 19... h6 {[%clk 0:01:49.8]}
20. Qxh4 {[%clk 0:02:00.7]} 20... hxg5 {[%clk 0:01:49.8]} 21. Bxg5 {[%clk
0:01:58.5]} 21... Qb6 {[%clk 0:01:43.1]} 22. axb5 {[%clk 0:01:47.9]} 22... c5
{[%clk 0:01:41]} 23. Rxa6 {[%clk 0:01:46.7]} 23... Qc7 {[%clk 0:01:41.6]} 24.
Be7 {[%clk 0:01:33.4]} 24... cxd4 {[%clk 0:01:28.9]} 25. Bd6 {[%clk 0:01:01.9]}
25... Qb7 {[%clk 0:01:06.9]} 26. c4 {[%clk 0:00:52.4]} 26... Bh1 {[%clk
0:01:05.2]} 27. Qf2 {[%clk 0:00:52.3]} 27... Bh6 {[%clk 0:01:00.2]} 28. Re1
{[%clk 0:00:41.7]} 28... Be3 {[%clk 0:00:56.1]} 29. Rxe3 {[%clk 0:00:42.1]}
29... dxe3 {[%clk 0:00:57.3]} 30. Qe2 {[%clk 0:00:42.6]} 30... Rfd8 {[%clk
0:00:39.5]} 31. Bxb8 {[%clk 0:00:42.8]} 31... Rxd3 {[%clk 0:00:39.8]} 32. Rd6
{[%clk 0:00:22.5]} 32... Rd2 {[%clk 0:00:30.9]} 33. Rxd2 {[%clk 0:00:22.6]}
33... exd2 {[%clk 0:00:30.8]} 34. Qxd2 {[%clk 0:00:23.2]} 34... Be4 {[%clk
0:00:17.2]} 35. Qd8+ {[%clk 0:00:22.7]} 35... Kh7 {[%clk 0:00:16.7]} 36. Qc7
{[%clk 0:00:20.6]} 36... Qa8 {[%clk 0:00:15.2]} 37. Qxf7+ {[%clk 0:00:20.6]}
37... Kh6 {[%clk 0:00:15.1]} 38. Qf4+ {[%clk 0:00:18.9]} 38... Kh7 {[%clk
0:00:14.6]} 39. Qf7+ {[%clk 0:00:14.9]} 39... Kh6 {[%clk 0:00:15.3]} 40. Qa7
{[%clk 0:00:16.7]} 40... Kg5 {[%clk 0:00:09.6]} 41. Qe3+ {[%clk 0:00:17.1]}
41... Kxg4 {[%clk 0:00:09.3]} 42. h3+ {[%clk 0:00:16.8]} 42... Kh5 {[%clk
0:00:08.9]} 43. Qa7 {[%clk 0:00:10.9]} 43... Kh4 {[%clk 0:00:09.1]} 44. c5
{[%clk 0:00:08.7]} 44... Qd5 {[%clk 0:00:08.9]} 45. Qh7+ {[%clk 0:00:07.9]}
45... Kg3 {[%clk 0:00:08.9]} 46. h4 {[%clk 0:00:04.9]} 46... Qd1# {[%clk
0:00:09.2]} 0